bitfinex/quotes_SOLUSD_20250612
["timestamp","ask_amount","ask_price","bid_price","bid_amount"]
[1749695662439,26.0,159.57,159.55,2.27896458]
[1749695662639,13.75620856,159.56,159.55,2.27896458]
[1749695663074,39.75620856,159.56,159.55,2.27896458]
[1749695664351,13.75620856,159.56,159.55,2.27896458]
[1749695665267,39.75620856,159.56,159.55,2.27896458]
[1749695666240,13.75620856,159.57,159.55,2.27896458]
[1749695666558,3.37762234,159.61,159.55,2.27896458]
[1749695666559,44.64964886,159.6,159.55,2.27896458]
[1749695666864,13.75620856,159.57,159.55,2.27896458]
[1749695670045,13.75620856,159.56,159.55,2.27896458]
[1749695670241,13.75620856,159.57,159.55,2.27896458]
[1749695672277,13.75620856,159.56,159.55,2.27896458]
[1749695672446,13.75620856,159.57,159.55,2.27896458]
[1749695675570,13.75620856,159.56,159.55,2.27896458]
[1749695679157,32.40585742,159.56,159.55,2.27896458]
[1749695679358,38.95741545,159.56,159.55,2.27896458]
[1749695679750,43.77643903,159.56,159.55,2.27896458]
[1749695680374,37.50920414,159.56,159.55,2.27896458]
[1749695680578,37.36704257,159.56,159.55,2.27896458]
[1749695680763,23.61083401,159.56,159.55,2.27896458]
[1749695680969,37.08271943,159.56,159.55,2.27896458]
[1749695681168,13.75620856,159.56,159.55,2.27896458]
[1749695681373,18.79181043,159.6,159.55,2.27896458]
[1749695681575,13.75620856,159.58,159.55,2.27896458]
[1749695682159,13.75620856,159.66,159.57,47.42840856]
[1749695682366,13.75620856,159.66,159.61,13.75620856]
[1749695682576,13.75620856,159.65,159.6,13.75620856]
[1749695682778,13.75620856,159.64,159.6,13.75620856]
[1749695683488,13.75620856,159.64,159.59,13.89837013]
[1749695684169,13.75620856,159.63,159.59,13.89837013]
[1749695684366,18.64964886,159.67,159.59,13.89837013]
[1749695684767,13.75620856,159.63,159.59,13.89837013]
[1749695684968,13.75620856,159.64,159.59,13.89837013]
[1749695685356,1.5786,159.72,159.61,0.14216157]
[1749695685558,13.75620856,159.67,159.62,13.75620856]
[1749695686587,13.75620856,159.66,159.62,0.14216157]
[1749695687171,18.64964886,159.69,159.62,13.89837013]
[1749695687482,13.75620856,159.66,159.62,13.89837013]
[1749695688076,18.64964886,159.69,159.62,13.89837013]
[1749695688269,13.75620856,159.69,159.64,13.75620856]
[1749695688471,13.75620856,159.69,159.65,19.27620856]
[1749695688669,26.0,159.7,159.65,19.27620856]
[1749695688882,13.75620856,159.68,159.65,5.52]
[1749695689584,26.0,159.7,159.65,5.52]
[1749695689585,0.28432314,159.74,159.65,19.27620856]
[1749695689885,13.75620856,159.7,159.65,19.27620856]
[1749695692264,13.75620856,159.71,159.66,13.75620856]
[1749695695291,13.75620856,159.7,159.65,19.27620856]
[1749695695477,18.64964886,159.72,159.65,19.27620856]
[1749695695670,13.75620856,159.7,159.65,19.27620856]
[1749695697474,13.75620856,159.7,159.66,13.75620856]
[1749695697789,13.75620856,159.71,159.66,13.75620856]
[1749695699091,13.75620856,159.69,159.65,5.52]
[1749695699294,18.64964886,159.72,159.65,19.27620856]
[1749695699580,13.75620856,159.7,159.65,19.27620856]
[1749695699991,13.75620856,159.71,159.66,13.75620856]
[1749695700376,13.75620856,159.75,159.7,13.75620856]
[1749695700589,18.64964886,159.74,159.7,13.75620856]
[1749695701093,13.75620856,159.75,159.7,13.75620856]
[1749695701395,13.75620856,159.76,159.71,13.75620856]
[1749695701699,13.75620856,159.75,159.71,13.75620856]
[1749695703201,18.64964886,159.77,159.71,13.75620856]
[1749695703499,13.75620856,159.78,159.73,13.75620856]
[1749695703700,13.75620856,159.79,159.74,19.25620856]
[1749695704291,18.64964886,159.8,159.74,5.5]
[1749695704292,13.75620856,159.78,159.74,5.5]
[1749695706701,13.75620856,159.77,159.74,5.5]
[1749695707718,13.75620856,159.76,159.74,5.5]
[1749695710697,13.75620856,159.79,159.74,19.25620856]
[1749695710926,18.64964886,159.82,159.75,13.89837013]
[1749695711138,13.75620856,159.81,159.77,13.75620856]
[1749695711436,7.83022247,159.88,159.78,15.30580856]
[1749695711437,13.75620856,159.83,159.78,15.30580856]
[1749695711723,13.75620856,159.84,159.79,39.33620856]
[1749695711896,13.75620856,159.83,159.79,39.33620856]
[1749695712096,13.75620856,159.83,159.79,25.58]
[1749695713195,13.75620856,159.83,159.79,39.33620856]
[1749695713395,18.64964886,159.87,159.79,39.33620856]
[1749695713613,13.75620856,159.84,159.79,39.33620856]
[1749695713913,18.64964886,159.87,159.83,13.75620856]
[1749695714125,18.64964886,159.87,159.83,19.25620856]
[1749695714315,32.40585742,159.87,159.83,19.25620856]
[1749695714699,188.85620856,159.89,159.83,5.5]
[1749695714913,18.64964886,159.88,159.84,13.75620856]
[1749695715421,32.40585742,159.9,159.85,13.75620856]
[1749695716320,18.64964886,159.9,159.85,13.75620856]
[1749695716525,18.64964886,159.88,159.85,13.75620856]
[1749695717397,13.75620856,159.89,159.83,5.5]
[1749695717598,18.64964886,159.89,159.86,13.75620856]
[1749695718599,18.64964886,159.89,159.83,5.5]
[1749695718918,32.40585742,159.89,159.85,13.75620856]
[1749695719234,18.64964886,159.89,159.86,13.75620856]
[1749695719434,32.40585742,159.89,159.85,13.75620856]
[1749695720827,18.64964886,159.89,159.85,13.75620856]
[1749695721323,1.6219,159.91,159.86,13.75620856]
[1749695721623,32.40585742,159.9,159.86,13.75620856]
[1749695721922,13.75620856,159.89,159.83,5.5]
[1749695722228,13.75620856,159.89,159.85,13.75620856]
[1749695723849,18.64964886,159.91,159.85,13.75620856]
[1749695724151,13.75620856,159.89,159.85,13.75620856]
[1749695724306,2.34411749,159.88,159.85,13.75620856]
[1749695724504,2.34411852,159.87,159.85,13.75620856]
[1749695724702,2.34411886,159.86,159.85,13.75620856]
[1749695724906,13.75620856,159.89,159.85,13.75620856]
[1749695725102,13.75620856,159.87,159.83,19.25620856]
[1749695725324,2.34421651,159.86,159.83,19.25620856]
[1749695725499,2.34421823,159.85,159.83,5.5]
[1749695725703,13.75620856,159.87,159.83,5.5]
[1749695725918,13.75620856,159.87,159.83,19.25620856]
[1749695725919,2.34424491,159.86,159.83,19.25620856]
[1749695726235,26.0,159.9,159.84,13.75620856]
[1749695726412,16.10032673,159.89,159.84,13.75620856]
[1749695726619,2.34411817,159.88,159.84,13.75620856]
[1749695726925,2.34411886,159.87,159.84,13.75620856]
[1749695727116,2.34411882,159.86,159.84,13.75620856]
[1749695727317,13.75620856,159.88,159.84,13.75620856]
[1749695727822,2.34413111,159.87,159.84,13.75620856]
[1749695728022,2.34413149,159.86,159.84,13.75620856]
[1749695728218,13.75620856,159.88,159.84,13.75620856]
[1749695728434,2.34413115,159.87,159.84,13.75620856]
[1749695728620,13.75620856,159.88,159.84,13.75620856]
[1749695729027,2.34411886,159.87,159.84,13.75620856]
[1749695729224,2.34411886,159.86,159.83,19.25620856]
[1749695729431,13.75620856,159.88,159.83,19.25620856]
[1749695729733,20.99400015,159.87,159.83,5.5]
[1749695729935,2.34435129,159.86,159.83,5.5]
[1749695730110,32.40585742,159.87,159.83,5.5]
[1749695730433,13.75620856,159.86,159.83,5.5]
[1749695730739,58.40585742,159.84,159.83,5.5]
[1749695731228,44.64964886,159.84,159.83,5.5]
[1749695732335,58.40585742,159.84,159.83,5.5]
[1749695733907,32.40585742,159.84,159.83,5.5]
[1749695734109,18.64964886,159.84,159.83,5.5]
[1749695735929,32.40585742,159.84,159.83,5.5]
[1749695737325,38.94643681,159.84,159.83,5.5]
[1749695737533,78.70264537,159.84,159.83,5.5]
[1749695738126,18.933972,159.83,159.76,5.5]
[1749695738334,13.75620856,159.8,159.76,5.5]
[1749695739844,13.75620856,159.78,159.76,5.5]
[1749695740321,13.75620856,159.79,159.76,5.5]
[1749695741719,13.75620856,159.78,159.76,5.5]
[1749695746561,13.75620856,159.78,159.73,13.75620856]
[1749695746747,13.75620856,159.78,159.74,5.5]
[1749695747673,13.75620856,159.77,159.74,5.5]
[1749695748680,13.75620856,159.78,159.74,5.5]
[1749695748850,0.28432314,159.81,159.74,5.5]
[1749695749054,13.75620856,159.78,159.74,5.5]
[1749695750182,13.75620856,159.78,159.74,19.25620856]
[1749695750488,13.75620856,159.79,159.74,19.25620856]
[1749695751548,13.75620856,159.78,159.74,13.75620856]
[1749695751745,13.75620856,159.78,159.74,5.5]
[1749695757776,13.75620856,159.77,159.74,5.5]
[1749695758375,13.75620856,159.78,159.74,5.5]
[1749695758765,32.40585742,159.75,159.74,5.5]
[1749695760682,32.69018056,159.75,159.74,5.5]
[1749695760880,58.83234213,159.75,159.74,5.5]
[1749695761086,18.64964886,159.71,159.67,5.5]
[1749695761473,18.64964886,159.72,159.68,13.75620856]
[1749695761662,18.64964886,159.73,159.69,13.75620856]
[1749695762274,13.75620856,159.72,159.67,5.5]
[1749695762466,13.75620856,159.72,159.68,13.75620856]
[1749695762864,13.75620856,159.72,159.67,19.25620856]
[1749695763062,18.64964886,159.75,159.68,13.75620856]
[1749695763369,13.75620856,159.72,159.68,13.75620856]
[1749695763757,5.76630612,159.87,159.72,8.0269]
[1749695763956,13.75620856,159.83,159.77,13.75620856]
[1749695764159,18.64964886,159.81,159.77,13.75620856]
[1749695764478,32.40585742,159.81,159.76,19.25620856]
[1749695765181,18.64964886,159.82,159.77,13.75620856]
[1749695765477,32.40585742,159.82,159.76,19.25620856]
[1749695766171,18.64964886,159.83,159.79,13.75620856]
[1749695766377,13.75620856,159.84,159.79,13.75620856]
[1749695767658,13.75620856,159.81,159.76,5.5]
[1749695767866,13.75620856,159.82,159.75,0.14216157]
[1749695768084,13.75620856,159.82,159.77,13.75620856]
[1749695768868,18.64964886,159.82,159.78,13.75620856]
[1749695769573,18.64964886,159.82,159.75,0.14216157]
[1749695769770,18.64964886,159.82,159.78,13.75620856]
[1749695775786,18.64964886,159.82,159.79,13.75620856]
[1749695775972,18.64964886,159.82,159.78,13.75620856]
[1749695776872,18.64964886,159.83,159.8,13.75620856]
[1749695777071,26.0,159.86,159.82,13.75620856]
[1749695777281,20.99438391,159.85,159.81,13.75620856]
[1749695777479,20.99438391,159.85,159.76,13.89837013]
[1749695777480,32.40585742,159.85,159.8,13.75620856]
[1749695778185,18.64964886,159.85,159.81,13.75620856]
[1749695778380,13.75620856,159.83,159.77,26.14216157]
[1749695778577,16.10085479,159.84,159.79,13.75620856]
[1749695778771,13.75620856,159.84,159.79,13.75620856]
[1749695778973,13.75620856,159.84,159.8,13.75620856]
[1749695779193,18.64964886,159.83,159.74,5.5]
[1749695779400,18.64964886,159.85,159.8,13.75620856]
[1749695779593,18.64964886,159.83,159.8,13.75620856]
[1749695779779,18.64964886,159.83,159.76,13.75620856]
[1749695779978,18.64964886,159.83,159.8,13.75620856]
[1749695782675,13.75620856,159.82,159.75,26.14216157]
[1749695782870,13.75620856,159.8,159.76,19.25620856]
[1749695783708,13.75620856,159.81,159.76,19.25620856]
[1749695783890,13.75620856,159.82,159.77,13.75620856]
[1749695784900,13.75620856,159.83,159.78,13.75620856]
[1749695785998,13.75620856,159.83,159.76,5.5]
[1749695785999,18.64964886,159.83,159.8,13.75620856]
[1749695786300,18.64964886,159.83,159.79,13.75620856]
[1749695786803,26.0,159.85,159.81,13.75620856]
[1749695787103,13.75620856,159.86,159.82,13.75620856]
[1749695787302,18.64964886,159.86,159.82,13.75620856]
[1749695787480,32.40585742,159.86,159.81,13.75620856]
[1749695788480,32.40585742,159.86,159.82,13.75620856]
[1749695790707,32.40585742,159.86,159.81,13.75620856]
[1749695790899,13.75620856,159.85,159.81,13.75620856]
[1749695792592,13.75620856,159.85,159.79,0.14216157]
[1749695792907,13.75620856,159.85,159.81,13.75620856]
[1749695793109,18.64964886,159.88,159.8,13.75620856]
[1749695793406,18.64964886,159.88,159.78,21.79290856]
[1749695793407,0.28432314,159.86,159.78,21.79290856]
[1749695793576,18.64964886,159.87,159.79,13.75620856]
[1749695793577,13.75620856,159.83,159.79,13.75620856]
[1749695795906,13.75620856,159.83,159.78,8.0367]
[1749695795907,13.75620856,159.83,159.78,15.30400856]
[1749695796310,32.40585742,159.82,159.76,31.5]
[1749695796505,13.75620856,159.81,159.76,19.25620856]
[1749695796705,13.75620856,159.81,159.77,13.75620856]
[1749695796905,13.75620856,159.81,159.76,5.5]
[1749695797200,18.64964886,159.84,159.76,5.5]
[1749695797201,13.75620856,159.8,159.76,5.5]
[1749695799187,13.75620856,159.8,159.76,19.25620856]
[1749695800713,13.75620856,159.8,159.76,5.5]
[1749695806794,13.75620856,159.79,159.76,5.5]
[1749695808718,13.75620856,159.8,159.76,5.5]
[1749695809217,13.79680612,159.89,159.79,13.75620856]
[1749695809418,18.64964886,159.85,159.81,13.75620856]
[1749695809597,13.75620856,159.86,159.82,13.75620856]
[1749695810000,13.75620856,159.86,159.81,13.75620856]
[1749695811515,13.75620856,159.86,159.78,0.14216157]
[1749695811516,13.75620856,159.87,159.82,13.75620856]
[1749695811818,13.75620856,159.87,159.83,13.75620856]
[1749695812023,13.75620856,159.87,159.82,13.75620856]
[1749695814221,13.75620856,159.85,159.8,1.5018]
[1749695814519,13.75620856,159.84,159.8,13.75620856]
[1749695815355,13.75620856,159.84,159.79,51.58]
[1749695815523,13.75620856,159.84,159.8,13.75620856]
[1749695818920,23.32016317,159.88,159.79,25.58]
[1749695818921,13.75620856,159.83,159.79,25.58]
[1749695819100,13.75620856,159.83,159.79,39.33620856]
[1749695819503,13.75620856,159.83,159.79,13.75620856]
[1749695821312,13.75620856,159.83,159.78,13.75620856]
[1749695821611,13.75620856,159.8,159.76,7.0786]
[1749695821810,13.75620856,159.8,159.76,32.6386]
[1749695822032,13.75620856,159.8,159.76,46.39480856]
[1749695822857,13.75620856,159.8,159.76,20.83480856]
[1749695824527,13.75620856,159.8,159.76,7.0786]
[1749695824716,13.75620856,159.8,159.76,20.83480856]
[1749695827626,13.75620856,159.81,159.76,20.83480856]
[1749695828732,13.75620856,159.8,159.76,20.83480856]
[1749695830541,18.64964886,159.84,159.76,20.83480856]
[1749695830753,13.75620856,159.81,159.76,20.83480856]
[1749695831037,13.75620856,159.8,159.76,46.39480856]
[1749695831725,13.75620856,159.8,159.76,15.33480856]
[1749695832035,13.75620856,159.8,159.75,5.5]
[1749695832036,13.75620856,159.77,159.75,5.5]
[1749695832219,13.75620856,159.76,159.75,5.5]
[1749695833125,24.90747711,159.8,159.75,5.5]
[1749695833325,13.75620856,159.76,159.75,5.5]
[1749695835029,0.28432314,159.79,159.75,5.5]
[1749695835231,13.75620856,159.76,159.75,5.5]
[1749695837737,32.40585742,159.8,159.75,19.25620856]
[1749695837936,13.75620856,159.79,159.75,19.25620856]
[1749695838146,13.75620856,159.79,159.75,5.5]
[1749695838318,13.75620856,159.76,159.75,5.5]
[1749695840321,18.64964886,159.8,159.75,5.5]
[1749695840521,13.75620856,159.77,159.75,5.5]
[1749695841025,13.75620856,159.78,159.75,5.5]
[1749695842651,13.75620856,159.77,159.75,5.5]
[1749695842830,13.75620856,159.76,159.75,5.5]
[1749695845947,1.536,159.83,159.75,19.25620856]
[1749695846130,13.75620856,159.82,159.77,13.75620856]
[1749695846323,32.40585742,159.84,159.79,13.75620856]
[1749695846518,13.75620856,159.85,159.8,13.75620856]
[1749695846732,6.0674,159.89,159.81,13.75620856]
[1749695846962,13.75620856,159.86,159.82,13.75620856]
[1749695847124,13.75620856,159.87,159.82,13.75620856]
[1749695847820,13.75620856,159.86,159.82,13.75620856]
[1749695848023,13.75620856,159.86,159.81,13.89837013]
[1749695848836,13.75620856,159.87,159.82,13.75620856]
[1749695854741,13.75620856,159.85,159.81,25.56]
[1749695854942,13.75620856,159.84,159.81,25.56]
[1749695856035,18.64964886,159.88,159.81,39.31620856]
[1749695856240,13.75620856,159.86,159.81,39.31620856]
[1749695857980,13.75620856,159.85,159.81,39.31620856]
[1749695858468,0.28432314,159.89,159.81,39.31620856]
[1749695858656,13.75620856,159.85,159.81,39.31620856]
[1749695859457,2.62131471,159.89,159.81,39.31620856]
[1749695859661,13.75620856,159.85,159.81,39.31620856]
[1749695861043,13.75620856,159.85,159.81,25.56]
[1749695864266,13.75620856,159.85,159.8,13.75620856]
[1749695864469,13.75620856,159.82,159.79,0.14216157]
[1749695864667,13.75620856,159.83,159.79,39.45837013]
[1749695865168,39.75620856,159.84,159.79,39.45837013]
[1749695865469,26.0,159.84,159.8,13.75620856]
[1749695867352,18.64964886,159.9,159.8,13.75620856]
[1749695867353,26.0,159.87,159.83,13.75620856]
[1749695867572,13.75620856,159.88,159.83,13.75620856]
[1749695867749,13.75620856,159.87,159.84,5.5]
[1749695872069,13.75620856,159.86,159.84,5.5]
[1749695880055,13.75620856,159.85,159.84,5.5]
[1749695880256,44.64964886,159.9,159.84,5.5]
[1749695880566,13.75620856,159.86,159.84,5.5]
[1749695882182,32.40585742,159.85,159.84,5.5]
[1749695885764,32.40585742,159.85,159.8,5.48]
[1749695885957,13.75620856,159.83,159.8,5.48]
[1749695891795,18.64964886,159.85,159.8,5.48]
[1749695892098,13.75620856,159.83,159.8,5.48]
[1749695895373,8.81344114,159.83,159.8,5.48]
[1749695897704,8.81344114,159.81,159.8,5.48]
[1749695898779,8.81344114,159.82,159.8,5.48]
[1749695898985,8.81344114,159.85,159.8,14.29344114]
[1749695899399,13.76850552,159.84,159.8,19.24850552]
[1749695901000,1.5889,159.86,159.8,5.48]
[1749695901186,13.76850552,159.84,159.8,5.48]
[1749695901389,13.76850552,159.85,159.8,19.24850552]
[1749695901695,13.76850552,159.86,159.81,13.76850552]
[1749695901895,13.76850552,159.85,159.81,13.76850552]
[1749695903409,13.76850552,159.85,159.8,19.24850552]
[1749695904395,2.34448117,159.86,159.81,13.91066709]
[1749695904396,13.76850552,159.86,159.81,13.91066709]
[1749695904701,13.76850552,159.87,159.82,13.76850552]
[1749695905304,13.76850552,159.86,159.81,39.32850552]
[1749695906106,13.76850552,159.86,159.82,0.14216157]
[1749695906410,13.76850552,159.87,159.83,13.76850552]
[1749695906614,13.76850552,159.87,159.82,13.91066709]
[1749695907108,44.64964886,159.9,159.83,13.76850552]
[1749695907288,13.76850552,159.87,159.83,13.76850552]
[1749695907504,13.76850552,159.87,159.82,13.91066709]
[1749695908387,13.76850552,159.87,159.82,0.14216157]
[1749695908588,13.76850552,159.86,159.82,0.14216157]
[1749695912119,13.76850552,159.87,159.82,13.91066709]
[1749695913599,6.541167,159.93,159.82,26.0]
[1749695913805,4.67442997,159.92,159.88,13.76850552]
[1749695913995,13.76850552,159.94,159.89,19.24850552]
[1749695914197,13.76850552,159.93,159.89,19.24850552]
[1749695914495,13.76850552,159.9,159.85,13.76850552]
[1749695914706,13.76850552,159.87,159.86,5.48]
[1749695917948,32.41815438,159.87,159.86,5.48]
[1749695918294,38.91390749,159.87,159.86,5.48]
[1749695918523,18.64964886,159.86,159.79,5.48]
[1749695918698,13.76850552,159.82,159.79,5.48]
[1749695919215,13.76850552,159.8,159.79,5.48]
[1749695920213,13.76850552,159.81,159.79,5.48]
[1749695921430,13.76850552,159.8,159.79,5.48]
[1749695942859,18.64964886,159.83,159.79,5.48]
[1749695943083,13.76850552,159.8,159.79,5.48]
[1749695943976,1.537,159.87,159.79,5.48]
[1749695944193,13.76850552,159.86,159.81,13.76850552]
[1749695944481,13.76850552,159.88,159.83,13.76850552]
[1749695945282,13.76850552,159.88,159.84,13.76850552]
[1749695946671,13.76850552,159.88,159.83,13.76850552]
[1749695949367,13.76850552,159.87,159.83,13.76850552]
[1749695951278,18.64964886,159.9,159.84,13.76850552]
[1749695951481,1.5619,159.91,159.87,13.76850552]
[1749695951482,13.76850552,159.91,159.87,13.76850552]
[1749695951656,13.76850552,159.91,159.86,13.76850552]
[1749695951856,13.76850552,159.9,159.83,0.42648471]
[1749695952056,13.76850552,159.9,159.85,13.76850552]
[1749695952263,13.76850552,159.89,159.84,13.76850552]
[1749695952467,13.76850552,159.88,159.84,13.76850552]
[1749695952670,13.76850552,159.88,159.83,13.76850552]
[1749695952872,13.76850552,159.88,159.84,13.76850552]
[1749695953673,18.64964886,159.92,159.86,13.76850552]
[1749695953872,13.76850552,159.89,159.85,13.76850552]
[1749695954090,13.76850552,159.89,159.82,57.6078]
[1749695954311,13.76850552,159.89,159.84,13.76850552]
[1749695956870,18.64964886,159.92,159.84,13.76850552]
[1749695957071,13.76850552,159.89,159.84,13.76850552]
[1749695958600,13.76850552,159.89,159.85,13.76850552]
[1749695959593,13.76850552,159.89,159.84,13.76850552]
[1749695964008,13.76850552,159.89,159.82,57.6078]
[1749695964194,13.76850552,159.89,159.84,13.76850552]
[1749695965004,13.76850552,159.88,159.84,13.76850552]
[1749695966388,13.76850552,159.86,159.82,26.0]
[1749695966599,13.76850552,159.86,159.79,7.1112]
[1749695966600,13.76850552,159.83,159.79,5.48]
[1749695966805,13.76850552,159.81,159.79,5.48]
[1749695967012,18.64964886,159.86,159.79,19.24850552]
[1749695967208,13.76850552,159.83,159.79,19.24850552]
[1749695969527,13.76850552,159.83,159.79,31.08]
[1749695969695,18.64964886,159.86,159.79,31.08]
[1749695969696,13.76850552,159.82,159.79,31.08]
[1749695973319,26.0,159.85,159.79,31.08]
[1749695973525,13.76850552,159.82,159.79,31.08]
[1749695975328,13.76850552,159.83,159.79,31.08]
[1749695980526,26.0,159.85,159.79,31.08]
[1749695980527,13.76850552,159.82,159.79,31.08]
[1749695982734,13.76850552,159.84,159.8,13.76850552]
[1749695982935,13.76850552,159.85,159.81,13.76850552]
[1749695983518,13.76850552,159.85,159.8,13.76850552]
[1749695987838,13.76850552,159.88,159.83,13.76850552]
[1749695988250,13.76850552,159.87,159.83,13.76850552]
[1749695989349,13.76850552,159.87,159.82,39.30850552]
[1749695990154,13.76850552,159.86,159.82,25.54]
[1749695990359,13.76850552,159.86,159.82,39.30850552]
[1749695990853,13.76850552,159.87,159.82,39.30850552]
[1749695991240,13.76850552,159.83,159.79,5.48]
[1749695991439,13.76850552,159.81,159.79,5.48]
[1749695991633,13.76850552,159.82,159.79,5.48]
[1749695991832,26.0,159.88,159.79,5.48]
[1749695992032,13.76850552,159.84,159.8,13.76850552]
[1749695992532,13.76850552,159.84,159.79,19.24850552]
[1749695994141,13.76850552,159.84,159.8,25.54]
[1749695994337,13.76850552,159.85,159.8,39.30850552]
[1749695995544,13.76850552,159.84,159.8,39.30850552]
[1749695999476,13.76850552,159.85,159.81,13.76850552]
[1749696000966,13.76850552,159.85,159.8,25.54]
[1749696000967,13.76850552,159.86,159.82,13.76850552]
[1749696002575,13.76850552,159.86,159.83,5.48]
[1749696003778,18.64964886,159.9,159.83,5.48]
[1749696003981,13.76850552,159.86,159.83,5.48]
[1749696005277,8.81030456,159.86,159.83,5.48]
[1749696006177,8.81030456,159.84,159.81,5.48]
[1749696006646,8.81030456,159.85,159.81,5.48]
[1749696008361,26.0,159.87,159.81,14.29030456]
[1749696008565,8.81030456,159.86,159.81,14.29030456]
[1749696008962,8.81030456,159.86,159.82,8.81030456]
[1749696009162,8.81030456,159.86,159.81,5.48]
[1749696009163,8.81030456,159.86,159.81,14.29030456]
[1749696011169,8.81030456,159.85,159.81,14.29030456]
[1749696012072,8.81030456,159.85,159.81,5.48]
[1749696012267,18.64964886,159.88,159.81,5.48]
[1749696012480,8.81030456,159.86,159.81,14.29030456]
[1749696015171,8.81030456,159.85,159.81,5.48]
[1749696015977,8.81030456,159.86,159.81,14.29030456]
[1749696017192,8.81030456,159.87,159.82,8.81030456]
[1749696017370,8.81030456,159.87,159.83,8.81030456]
[1749696019584,8.81030456,159.86,159.82,8.81030456]
[1749696019971,8.81030456,159.86,159.81,14.29030456]
[1749696023695,8.81030456,159.85,159.81,14.29030456]
[1749696024275,8.81030456,159.86,159.81,14.29030456]
[1749696025902,4.66284861,159.89,159.81,5.48]
[1749696025903,8.81030456,159.84,159.81,5.48]
[1749696026097,8.81030456,159.84,159.81,31.02]
[1749696027696,8.81030456,159.84,159.81,5.48]
[1749696031893,8.81030456,159.82,159.81,5.48]
[1749696032095,10.91574779,159.89,159.81,5.48]
[1749696032096,8.81030456,159.83,159.81,5.48]
[1749696035411,4.65975929,159.87,159.81,5.48]
[1749696035598,8.81030456,159.83,159.81,5.48]
[1749696045312,8.81030456,159.84,159.81,5.48]
[1749696046312,8.81030456,159.85,159.81,5.48]
[1749696048415,8.81030456,159.82,159.81,5.48]
[1749696048621,27.45995342,159.82,159.81,5.48]
[1749696049003,32.11847841,159.82,159.81,5.48]
[1749696049201,27.45995342,159.82,159.81,5.48]
[1749696051402,26.0,159.84,159.81,5.48]
[1749696051728,7.8278,159.86,159.81,5.48]
[1749696051729,8.81030456,159.82,159.81,5.48]
[1749696053234,13.77402999,159.82,159.81,5.48]
[1749696055749,18.64964886,159.85,159.81,5.48]
[1749696055945,13.77402999,159.82,159.81,5.48]
[1749696057642,39.77402999,159.82,159.81,5.48]
[1749696057947,32.42367885,159.82,159.81,5.48]
[1749696063960,32.70800199,159.82,159.81,5.48]
[1749696064763,18.64964886,159.81,159.74,5.48]
[1749696064966,13.77402999,159.77,159.74,5.48]
[1749696065271,13.77402999,159.75,159.74,5.48]
[1749696071176,18.64964886,159.78,159.74,5.48]
[1749696071351,13.77402999,159.75,159.74,5.48]
[1749696074146,32.42367885,159.75,159.74,5.48]
[1749696074852,32.70800199,159.75,159.74,5.48]
[1749696079458,32.70800199,159.75,159.64,27.6138]
[1749696079665,13.77402999,159.68,159.67,5.48]
[1749696089255,26.0,159.72,159.67,5.48]
[1749696089463,13.77402999,159.7,159.67,5.48]
[1749696089665,26.0,159.72,159.67,5.48]
[1749696089882,13.77402999,159.69,159.67,5.48]
[1749696090279,13.77402999,159.7,159.67,5.48]
[1749696090866,26.0,159.72,159.67,5.48]
[1749696091096,150.6048,159.76,159.69,13.77402999]
[1749696091298,13.77402999,159.74,159.69,13.77402999]
[1749696091472,13.77402999,159.73,159.69,13.77402999]
[1749696091675,13.77402999,159.71,159.68,25.56]
[1749696091979,13.77402999,159.69,159.68,25.56]
[1749696092173,13.77402999,159.69,159.67,5.48]
[1749696092375,13.77402999,159.68,159.67,5.48]
[1749696093063,13.77402999,159.68,159.66,5.48]
[1749696093769,26.0,159.72,159.66,5.48]
[1749696093967,13.77402999,159.7,159.66,5.48]
[1749696094375,13.77402999,159.69,159.66,5.48]
[1749696094990,13.77402999,159.7,159.66,5.48]
[1749696095965,26.0,159.74,159.68,13.77402999]
[1749696096165,13.77402999,159.73,159.69,13.77402999]
[1749696096366,13.77402999,159.72,159.68,13.77402999]
[1749696097093,26.0,159.74,159.68,13.77402999]
[1749696097290,13.77402999,159.72,159.68,13.77402999]
[1749696097512,13.77402999,159.72,159.67,13.77402999]
[1749696098170,18.64964886,159.73,159.66,5.48]
[1749696098368,13.77402999,159.68,159.66,5.48]
[1749696099387,13.77402999,159.69,159.66,5.48]
[1749696100727,13.77402999,159.7,159.66,5.48]
[1749696100896,26.0,159.72,159.66,19.25402999]
[1749696101074,13.77402999,159.7,159.66,19.25402999]
[1749696101692,26.0,159.72,159.66,19.25402999]